[Event "FIDE Open World Rapid 2024"]
[Site "New York"]
[Date "2024.12.27"]
[Round "9.7"]
[White "Nepomniachtchi, Ian"]
[Black "Gelfand, Boris"]
[Result "1-0"]
[ECO "E28"]
[WhiteElo "2755"]
[BlackElo "2657"]
[Annotator "TA"]
[PlyCount "63"]
[EventDate "2024.12.14"]
[EventType "swiss"]
[EventCountry "USA"]
[SourceTitle "playchess.com"]
[Source "ChessBase"]
[SourceQuality "1"]
[TimeControl "900+10"]

{[%evp 11,63,-18,-17,-57,-8,-43,-39,-60,-35,-110,-34,-65,-72,-93,-87,-94,-84,-97,-93,-129,-93,-85,-99,-88,-91,-104,-97,-126,0,-10,-14,-36,0,0,0,0,0,-39,0,0,0,0,6,2,33,45,76,72,101,96,151,123,1396,1377]} 1. d4 {[%emt 0:01:05]} Nf6 {[%emt 0:00:01]} 2. c4 {[%emt 0:00:02]} e6 {[%emt 0:00:01]} 3. Nc3 {[%emt 0:00:01]} Bb4 {[%emt 0:00:02]} 4. e3 {[%emt 0:00:02]} O-O {[%emt 0:00:01]} 5. a3 {[%emt 0:00:01]} Bxc3+ {[%emt 0:00:05]} 6. bxc3 {[%emt 0:00:02]} d6 {[%emt 0:00:11]} 7. f3 {[%emt 0:00:02]} e5 {[%emt 0:00:08]} (7... c5 $15 {is superior.}) 8. Ra2 {[%emt 0:00:01]} Nc6 {[%emt 0:00:51]} 9. Rf2 {[%emt 0:00:03]} b6 {[%emt 0:01:04]} 10. e4 {[%emt 0:00:30] [#]} ({White should play} 10. Ne2 $15) 10... Nd7 {[%emt 0:00:38]} (10... Ba6 $1 $17 11. g4 Re8) 11. g4 {[%emt 0:00:55]} Ba6 {[%emt 0:00:10]} 12. h4 {[%emt 0:00:10]} Na5 {[%emt 0:00:04]} 13. Ne2 {[%emt 0:00:12][%cal Bg1e2,Be2g3,Bg3f5][%mdl 32]} Bxc4 {[%emt 0:00:30]} 14. Ng3 {[%emt 0:00:02]} d5 {[%emt 0:01:39]} 15. g5 {[%emt 0:00:08]} Re8 {[%emt 0:01:03]} 16. Bxc4 {[%emt 0:00:11]} Nxc4 {[%emt 0:00:11]} 17. O-O {[%emt 0:00:02]} Nf8 {[%emt 0:00:47]} 18. h5 {[%emt 0:03:32]} Ne6 {[%emt 0:01:45] Excellent horsemanship.} 19. Nf5 {[%emt 0:00:53]} Nf4 {[%emt 0:02:00] Against Rg2} (19... Nxg5 $6 20. Bxg5 Qxg5+ 21. Rg2 $11) (19... c5 $17 {aiming for ...exd4.} 20. dxe5 dxe4 (20... Nxg5 $2 21. Rg2 $18) (20... Nxe5 21. f4 $16) 21. fxe4 Qxd1 (21... Nxg5 $2 22. Bxg5 Qxd1 23. Rxd1 $18) (21... Nxe5 22. Rd2 $11) 22. Rxd1 Nxe5) 20. Bxf4 {[%emt 0:00:03]} exf4 {[%emt 0:00:01]} 21. Qc1 $1 {[%emt 0:00:01]} Ne3 {[%emt 0:02:19]} 22. Nxe3 {[%emt 0:00:03]} fxe3 {[%emt 0:00:01]} 23. Qxe3 {[%emt 0:00:02]} Qd7 {[%emt 0:01:35]} 24. Qf4 {[%emt 0:00:18]} c6 {[%emt 0:00:11]} 25. h6 {[%emt 0:01:18]} Re6 {[%emt 0:00:13]} 26. hxg7 {[%emt 0:00:01]} Rg6 {[%emt 0:00:01] Black is weak on the dark squares} 27. e5 {[%emt 0:00:08]} Re8 {[%emt 0:00:33]} 28. Rh2 $36 {[%emt 0:00:19][%mdl 2048] White is more active.} Rxg7 {[%emt 0:00:03] [#]} 29. Kf2 $1 {[%emt 0:00:07]} Qe7 {[%emt 0:01:04]} 30. Rfh1 {[%emt 0:00:08]} Qd7 {[%emt 0:01:14]} (30... Qxa3 $2 {too greedy.} 31. Rxh7 Rxh7 32. Rxh7 $18) ({Better is} 30... c5 31. Qf5 Qxg5 32. Rxh7 (32. Qxg5 Rxg5 33. Rxh7 Kf8 $16) 32... Qd2+ 33. Kf1 Qd1+ 34. Kf2 Qd2+) 31. Rh6 {[%emt 0:00:24]} Re6 $2 {[%emt 0:00:07][%mdl 8192]} (31... c5 $16 32. Kg3 Rd8) 32. Qf5 {[%emt 0:00:14]} 1-0

[Event "FIDE Open World Rapid 2024"]
[Site "New York"]
[Date "2024.12.28"]
[Round "9.7"]
[White "Gagunashvili, Merab"]
[Black "Petrosian, Tigran L."]
[Result "1/2-1/2"]
[ECO "B07"]
[WhiteElo "2541"]
[BlackElo "2551"]
[Annotator "ChessBase"]
[PlyCount "84"]
[EventDate "2024.12.14"]
[EventType "swiss"]
[EventCountry "USA"]
[SourceTitle "playchess.com"]
[Source "ChessBase"]
[SourceQuality "1"]
[TimeControl "900+10"]

1. d4 {[%emt 0:00:01]} d6 {[%emt 0:00:01]} 2. e4 {[%emt 0:00:01]} Nf6 {[%emt 0:00:02]} 3. Nc3 {[%emt 0:00:01]} g6 {[%emt 0:00:01]} 4. g3 {[%emt 0:00:04]} Bg7 {[%emt 0:00:01]} 5. Bg2 {[%emt 0:00:00]} O-O {[%emt 0:00:02]} 6. Nge2 {[%emt 0:00:01]} e5 {[%emt 0:00:02]} 7. O-O {[%emt 0:00:02]} Nc6 {[%emt 0:00:03]} 8. dxe5 {[%emt 0:00:11]} Nxe5 {[%emt 0:00:03]} 9. h3 {[%emt 0:00:05]} Re8 {[%emt 0:00:02]} 10. Nd4 {[%emt 0:00:33]} Bd7 {[%emt 0:00:25]} 11. Re1 {[%emt 0:00:22]} Nc6 {[%emt 0:00:28]} 12. Be3 {[%emt 0:00:07]} Nxd4 {[%emt 0:00:06]} 13. Bxd4 {[%emt 0:00:01]} Bc6 {[%emt 0:00:01]} 14. Qd3 {[%emt 0:00:07]} Nd7 {[%emt 0:00:04]} 15. Bxg7 {[%emt 0:00:02]} Kxg7 {[%emt 0:00:02]} 16. Rad1 {[%emt 0:00:04]} Qf6 {[%emt 0:00:04]} 17. f4 {[%emt 0:00:22]} Re7 {[%emt 0:00:16]} 18. Re2 {[%emt 0:00:40]} Rae8 {[%emt 0:00:04]} 19. Rde1 {[%emt 0:00:01]} a5 {[%emt 0:01:35]} 20. b3 {[%emt 0:00:11]} Kg8 {[%emt 0:00:27]} 21. Nd5 {[%emt 0:00:12]} Bxd5 {[%emt 0:00:03]} 22. Qxd5 {[%emt 0:00:00]} b6 {[%emt 0:00:26]} 23. Qd2 {[%emt 0:00:39]} Qb2 {[%emt 0:00:10]} 24. a4 {[%emt 0:01:06]} Qa3 {[%emt 0:00:32]} 25. Kh2 {[%emt 0:00:05]} Qb4 {[%emt 0:00:02]} 26. Qxb4 {[%emt 0:01:20]} axb4 {[%emt 0:00:02]} 27. Rd1 {[%emt 0:00:19]} Nc5 {[%emt 0:02:11]} 28. Rd4 {[%emt 0:00:19]} f5 {[%emt 0:00:01]} 29. e5 {[%emt 0:03:16]} dxe5 {[%emt 0:00:14]} 30. Rxe5 {[%emt 0:00:11]} Rxe5 {[%emt 0:00:02]} 31. fxe5 {[%emt 0:00:01]} Rxe5 {[%emt 0:04:31]} 32. Rxb4 {[%emt 0:00:01]} Kf7 {[%emt 0:00:01]} 33. Kg1 {[%emt 0:01:37]} Kf6 {[%emt 0:01:06]} 34. Kf2 {[%emt 0:00:07]} g5 {[%emt 0:00:06]} 35. Rd4 {[%emt 0:00:09]} h5 {[%emt 0:00:31]} 36. Rd8 {[%emt 0:01:06]} h4 {[%emt 0:00:02]} 37. gxh4 {[%emt 0:00:15]} gxh4 {[%emt 0:00:01]} 38. Rh8 {[%emt 0:00:16]} Kg5 {[%emt 0:00:03]} 39. Rg8+ {[%emt 0:01:21]} Kf4 {[%emt 0:00:04]} 40. Rh8 {[%emt 0:00:01]} Kg5 {[%emt 0:00:02]} 41. Rg8+ {[%emt 0:00:54]} Kf4 {[%emt 0:00:02]} 42. Rh8 {[%emt 0:00:02]} Kg5 {[%emt 0:00:01]} 1/2-1/2

[Event "FIDE Open World Rapid 2024"]
[Site "New York"]
[Date "2024.12.27"]
[Round "9.8"]
[White "Aronian, Levon"]
[Black "Bluebaum, Matthias"]
[Result "1/2-1/2"]
[ECO "C07"]
[WhiteElo "2747"]
[BlackElo "2650"]
[Annotator "TA"]
[PlyCount "69"]
[EventDate "2024.12.14"]
[EventType "swiss"]
[EventCountry "USA"]
[SourceTitle "playchess.com"]
[Source "ChessBase"]
[SourceQuality "1"]
[TimeControl "900+10"]

{[%evp 9,68,20,2,7,6,0,8,-1,47,0,0,0,7,0,5,0,0,7,0,0,0,-15,-2,-14,0,0,0,0,11,0,14,7,7,14,15,16,29,14,20,20,25,32,32,19,28,4,7,7,15,0,0,0,0,-45,-35,-72,-72,-74,0,-11,0]} 1. e4 {[%emt 0:00:01]} e6 {[%emt 0:00:01]} 2. d4 {[%emt 0:00:01]} d5 {[%emt 0:00:01]} 3. Nd2 {[%emt 0:00:02]} c5 {[%emt 0:00:01]} 4. dxc5 {[%emt 0:00:01]} Nf6 {[%emt 0:00:03]} 5. exd5 {[%emt 0:00:02]} Qxd5 {[%emt 0:00:01]} 6. Nb3 {[%emt 0:00:01]} Qxd1+ {[%emt 0:00:06]} 7. Kxd1 {[%emt 0:00:01]} Bd7 {[%emt 0:00:02]} 8. f3 {[%emt 0:01:19]} Ba4 {[%emt 0:00:20]} (8... Be7 $11) 9. Ne2 {[%emt 0:00:28]} (9. Na5 $1 $14 {is more appropriate.}) 9... Nbd7 {[%emt 0:00:31]} 10. Nc3 {[%emt 0:00:19]} Bxb3 {[%emt 0:00:18]} 11. axb3 {[%emt 0:00:02]} Bxc5 {[%emt 0:00:03]} 12. Bb5 {[%emt 0:00:40]} Ke7 {[%emt 0:00:40]} 13. Ke2 {[%emt 0:00:57]} a6 {[%emt 0:00:13]} 14. Bxd7 {[%emt 0:00:03]} Kxd7 {[%emt 0:01:06]} 15. Bg5 {[%emt 0:00:24]} h6 {[%emt 0:00:41]} 16. Rhd1+ {[%emt 0:00:39]} Ke7 {[%emt 0:00:26]} 17. Bxf6+ {[%emt 0:01:31]} gxf6 {[%emt 0:00:02][%cal Bg7f6,Bf6f5][%mdl 32]} 18. Ne4 {[%emt 0:00:02]} Rac8 {[%emt 0:00:12]} 19. Ra4 {[%emt 0:00:13]} f5 {[%emt 0:00:23]} 20. Nxc5 {[%emt 0:00:15]} Rxc5 $11 {[%emt 0:00:01][%mdl 4096] Endgame KRR-KRR} 21. Rd2 {[%emt 0:00:02]} Rhc8 {[%emt 0:00:25]} 22. Kd1 {[%emt 0:00:02]} Kf6 {[%emt 0:00:15]} 23. c3 {[%emt 0:00:27]} R8c7 {[%emt 0:00:57]} 24. Rh4 {[%emt 0:00:15]} Kg7 {[%emt 0:00:23]} 25. b4 {[%emt 0:00:12]} Rb5 {[%emt 0:00:56]} 26. Kc2 {[%emt 0:00:20]} a5 {[%emt 0:00:30]} 27. Kb3 {[%emt 0:00:06] White wants to play Ka4.} axb4 {[%emt 0:00:27]} 28. Rxb4 {[%emt 0:00:01]} Re5 {[%emt 0:00:01]} 29. Rb6 {[%emt 0:02:50]} Re1 {[%emt 0:01:22]} 30. Kb4 {[%emt 0:00:14]} e5 {[%emt 0:00:18]} 31. Rbd6 {[%emt 0:01:29]} e4 {[%emt 0:00:26]} 32. Rd1 {[%emt 0:00:01]} Re2 {[%emt 0:02:04][%csl LRb2,LRg2]} 33. R1d2 {[%emt 0:00:02]} Re1 {[%emt 0:00:10]} (33... Rxd2 $17 34. Rxd2 e3) 34. Rd1 {[%emt 0:00:01]} Re2 {[%emt 0:00:01][%csl LRb2,LRg2]} 35. R1d2 $1 {[%emt 0:00:15]} 1/2-1/2

[Event "FIDE Open World Rapid 2024"]
[Site "New York"]
[Date "2024.12.28"]
[Round "9.8"]
[White "Lodici, Lorenzo"]
[Black "Fressinet, Laurent"]
[Result "1-0"]
[ECO "C50"]
[WhiteElo "2564"]
[BlackElo "2588"]
[Annotator "ChessBase"]
[PlyCount "99"]
[EventDate "2024.12.14"]
[EventType "swiss"]
[EventCountry "USA"]
[SourceTitle "playchess.com"]
[Source "ChessBase"]
[SourceQuality "1"]
[TimeControl "900+10"]

1. e4 {[%emt 0:00:01]} e5 {[%emt 0:00:07]} 2. Nf3 {[%emt 0:00:02]} Nc6 {[%emt 0:00:02]} 3. Bc4 {[%emt 0:00:26]} Nf6 {[%emt 0:00:02]} 4. d3 {[%emt 0:00:03]} Bc5 {[%emt 0:00:03]} 5. Nc3 {[%emt 0:00:04]} a6 {[%emt 0:00:08]} 6. Bg5 {[%emt 0:00:07]} h6 {[%emt 0:00:21]} 7. Bxf6 {[%emt 0:00:02]} Qxf6 {[%emt 0:00:02]} 8. Nd5 {[%emt 0:00:02]} Qd8 {[%emt 0:00:02]} 9. c3 {[%emt 0:00:02]} d6 {[%emt 0:01:10]} 10. d4 {[%emt 0:00:01]} Ba7 {[%emt 0:00:07]} 11. dxe5 {[%emt 0:00:02]} O-O {[%emt 0:00:03]} 12. exd6 {[%emt 0:00:34]} Qxd6 {[%emt 0:00:02]} 13. Qc2 {[%emt 0:01:42]} Be6 {[%emt 0:02:47]} 14. O-O-O {[%emt 0:01:12]} Qc5 {[%emt 0:00:00]} 15. Bb3 {[%emt 0:00:01]} Na5 {[%emt 0:00:04]} 16. Nd4 {[%emt 0:01:07]} Rad8 {[%emt 0:03:20]} 17. f4 {[%emt 0:05:44]} Nxb3+ {[%emt 0:04:43]} 18. Nxb3 {[%emt 0:00:02]} Qc4 {[%emt 0:00:02]} 19. Ne7+ {[%emt 0:00:02]} Kh8 {[%emt 0:00:01]} 20. f5 {[%emt 0:00:01]} Bd7 {[%emt 0:00:08]} 21. Rhe1 {[%emt 0:01:28]} Bb5 {[%emt 0:03:08]} 22. f6 {[%emt 0:02:08]} g6 {[%emt 0:00:01]} 23. Kb1 {[%emt 0:02:46]} Rxd1+ {[%emt 0:01:02]} 24. Rxd1 {[%emt 0:00:19]} Qe6 {[%emt 0:00:25]} 25. Qd2 {[%emt 0:00:08]} Qxe4+ {[%emt 0:00:27]} 26. Ka1 {[%emt 0:00:00]} Qe3 {[%emt 0:00:26]} 27. Qd5 {[%emt 0:00:37]} Qf4 {[%emt 0:00:34]} 28. Qxb7 {[%emt 0:00:31]} Bb6 {[%emt 0:00:04]} 29. Qf3 {[%emt 0:00:35]} Qxf3 {[%emt 0:00:18]} 30. gxf3 {[%emt 0:00:01]} Be2 {[%emt 0:00:01]} 31. Re1 {[%emt 0:00:14]} Bxf3 {[%emt 0:00:01]} 32. c4 {[%emt 0:00:01]} c6 {[%emt 0:00:36]} 33. c5 {[%emt 0:00:04]} Bc7 {[%emt 0:00:01]} 34. Nd4 {[%emt 0:00:04]} Bg2 {[%emt 0:00:14]} 35. Ndxc6 {[%emt 0:00:22]} Bxh2 {[%emt 0:00:10]} 36. Re2 {[%emt 0:00:03]} Bxc6 {[%emt 0:00:16]} 37. Rxh2 {[%emt 0:00:01]} h5 {[%emt 0:00:01]} 38. Nxc6 {[%emt 0:00:04]} Rc8 {[%emt 0:00:00]} 39. Ne7 {[%emt 0:00:45]} Rxc5 {[%emt 0:00:03]} 40. b4 {[%emt 0:00:01]} Rc4 {[%emt 0:00:06]} 41. a3 {[%emt 0:00:03]} h4 {[%emt 0:00:10]} 42. Kb2 {[%emt 0:00:03]} g5 {[%emt 0:00:10]} 43. Kb3 {[%emt 0:00:01]} Rf4 {[%emt 0:00:01]} 44. Nd5 {[%emt 0:00:07]} Rf3+ {[%emt 0:00:12]} 45. Kc4 {[%emt 0:00:21]} h3 {[%emt 0:00:29]} 46. a4 {[%emt 0:00:00]} g4 {[%emt 0:00:02]} 47. b5 {[%emt 0:00:01]} axb5+ {[%emt 0:00:03]} 48. axb5 {[%emt 0:00:00]} Kh7 {[%emt 0:00:16]} 49. b6 {[%emt 0:00:01]} Rf1 {[%emt 0:00:02]} 50. b7 {[%emt 0:00:09]} 1-0

[Event "FIDE Open World Rapid 2024"]
[Site "New York"]
[Date "2024.12.27"]
[Round "9.9"]
[White "Mamedyarov, Shakhriyar"]
[Black "Sargsyan, Shant"]
[Result "1-0"]
[ECO "D32"]
[WhiteElo "2738"]
[BlackElo "2646"]
[Annotator "TA"]
[PlyCount "137"]
[EventDate "2024.12.14"]
[EventType "swiss"]
[EventCountry "USA"]
[SourceTitle "playchess.com"]
[Source "ChessBase"]
[SourceQuality "1"]
[TimeControl "900+10"]

{[%evp 62,137,42,47,71,72,58,62,64,68,65,63,62,63,60,75,87,57,131,106,130,130,141,142,135,142,226,150,164,164,164,164,164,164,164,164,164,164,164,164,164,164,164,142,142,142,164,164,164,142,164,164,213,164,455,164,164,0,164,149,11276,1894,3606,11335,12320,130,1730,4772,29969,29972,29971,29972,29975,29976,29974,29975,29973,29969]} 1. d4 {[%emt 0:00:01]} d5 {[%emt 0:00:01]} 2. c4 {[%emt 0:00:02]} e6 {[%emt 0:00:01]} 3. Nc3 {[%emt 0:00:02]} c5 {[%emt 0:00:02]} 4. e3 {[%emt 0:00:16]} Nf6 {[%emt 0:00:08]} 5. Nf3 {[%emt 0:00:06]} Nc6 {[%emt 0:00:02]} 6. cxd5 {[%emt 0:00:17]} exd5 {[%emt 0:00:03]} 7. Be2 {[%emt 0:00:20]} c4 {[%emt 0:01:09]} 8. O-O {[%emt 0:00:06]} Bb4 {[%emt 0:00:02]} 9. Bd2 {[%emt 0:01:27]} O-O {[%emt 0:00:25]} 10. b3 {[%emt 0:00:39]} Bxc3 {[%emt 0:00:48]} 11. Bxc3 {[%emt 0:00:01]} b5 {[%emt 0:00:02]} 12. Ne5 {[%emt 0:00:15]} Qd6 {[%emt 0:01:25]} 13. bxc4 {[%emt 0:02:41]} bxc4 {[%emt 0:00:12]} 14. Qa4 {[%emt 0:01:25]} Bd7 {[%emt 0:00:41]} 15. Nxc6 {[%emt 0:02:38]} Bxc6 {[%emt 0:00:52]} 16. Qb4 {[%emt 0:00:14]} Qe6 {[%emt 0:00:42]} 17. Rfb1 {[%emt 0:00:29]} h5 {[%emt 0:00:14]} 18. Qa5 {[%emt 0:00:24]} h4 {[%emt 0:00:37]} 19. h3 {[%emt 0:00:27]} Ne4 {[%emt 0:00:37]} 20. Be1 {[%emt 0:00:09]} Rfe8 {[%emt 0:00:44]} 21. Rb2 {[%emt 0:01:18]} Qg6 {[%emt 0:00:54]} 22. Qc7 {[%emt 0:00:33]} Qd6 {[%emt 0:03:25]} 23. Qxd6 {[%emt 0:00:29]} Nxd6 {[%emt 0:00:01]} 24. Rab1 {[%emt 0:00:06]} f5 {[%emt 0:01:26]} 25. Bh5 {[%emt 0:01:22]} Rec8 {[%emt 0:00:48]} 26. Bd1 {[%emt 0:01:04]} Kf7 {[%emt 0:00:22]} 27. f3 {[%emt 0:00:30]} g5 {[%emt 0:00:25]} 28. Bb4 {[%emt 0:00:08]} Ke6 {[%emt 0:00:25]} 29. Bc2 {[%emt 0:00:24]} c3 {[%emt 0:01:11]} 30. Bxc3 {[%emt 0:00:46]} Nc4 {[%emt 0:00:01]} 31. Rb4 {[%emt 0:00:01]} Na3 {[%emt 0:01:29]} 32. Rc1 {[%emt 0:00:01]} a5 {[%emt 0:00:37]} 33. Rb3 {[%emt 0:00:16]} Nxc2 {[%emt 0:00:34]} 34. Rxc2 {[%emt 0:00:00]} Ba4 {[%emt 0:00:12]} 35. Rb6+ {[%emt 0:00:02]} Kd7 {[%emt 0:00:04]} 36. Rc1 {[%emt 0:00:02]} Rc4 {[%emt 0:00:14]} 37. Bd2 {[%emt 0:00:04]} Rxc1+ {[%emt 0:00:12]} 38. Bxc1 {[%emt 0:00:01]} Rc8 {[%emt 0:00:02]} 39. Ba3 {[%emt 0:00:12]} Rc6 {[%emt 0:00:19]} (39... Rc3 $14 40. Rd6+ Ke8) 40. Bc5 {[%emt 0:00:04]} Kc7 {[%emt 0:00:11]} 41. Rxc6+ $1 {[%emt 0:00:11]} Kxc6 {[%emt 0:00:09]} 42. Be7 {[%emt 0:00:01]} g4 {[%emt 0:00:09]} 43. Bxh4 {[%emt 0:00:53]} (43. fxg4 fxg4 44. Bxh4 (44. hxg4 Bd1 $18) 44... gxh3) 43... gxf3 {[%emt 0:00:07]} (43... Bb5 $16 44. hxg4 (44. fxg4 fxg4 45. hxg4 Bd3 $18) 44... fxg4 45. fxg4 Be2) 44. gxf3 {[%emt 0:00:01]} f4 {[%emt 0:00:03]} 45. exf4 {[%emt 0:00:57]} Bc2 {[%emt 0:00:10]} 46. Kf2 {[%emt 0:00:03]} Bf5 {[%emt 0:00:11]} 47. Kg3 {[%emt 0:00:03]} a4 {[%emt 0:00:11]} 48. Be7 {[%emt 0:00:33]} Kd7 {[%emt 0:00:09]} 49. Bb4 $1 {[%emt 0:00:04]} Ke6 {[%emt 0:00:13]} 50. h4 {[%emt 0:00:01]} Kf6 {[%emt 0:00:10]} 51. h5 {[%emt 0:00:04]} Bc2 {[%emt 0:00:16]} 52. Kg4 {[%emt 0:00:05]} Bf5+ {[%emt 0:00:10]} 53. Kh4 $1 {[%emt 0:00:01]} Bc2 {[%emt 0:00:06]} 54. Kg3 {[%emt 0:00:08]} Bd3 {[%emt 0:00:15]} 55. a3 {[%emt 0:00:07]} Bc2 {[%emt 0:00:06]} 56. Ba5 {[%emt 0:00:05]} Bd3 {[%emt 0:00:14]} (56... Bb1 {keeps fighting.} 57. Bd8+ Kf5) 57. Bd8+ {[%emt 0:00:02]} Kf5 $2 {[%emt 0:00:08]} (57... Ke6 58. Kg4 Bb1) 58. Bg5 $2 {[%emt 0:00:02]} (58. Kf2) 58... Ke6 $18 {[%emt 0:00:11]} 59. Bd8 {[%emt 0:00:05]} Kf5 {[%emt 0:00:08]} 60. h6 {[%emt 0:00:04]} Kg6 $2 {[%emt 0:00:08][%mdl 8192]} (60... Ke6 $16 61. Kf2 Bf5) 61. Bg5 $18 {[%emt 0:00:01]} Kf7 {[%emt 0:00:07]} 62. Kf2 $1 {[%emt 0:00:16]} Ke6 {[%emt 0:00:18] [#]} 63. Ke3 $2 {[%emt 0:00:00]} (63. Ke1 $1 $18 {is the precise move to win. Kd2 is the strong threat.} Bf5 64. Kd2) 63... Bg6 $2 {[%emt 0:00:11][%mdl 8192] [#]} (63... Bf5 $16 64. Kd2 Bb1) 64. Kd2 $1 $18 {[%emt 0:00:01]} Kd6 {[%emt 0:00:10]} 65. Kc3 {[%emt 0:00:00]} Kc6 {[%emt 0:00:03]} 66. Kb4 {[%emt 0:00:00]} Bc2 {[%emt 0:00:13]} 67. f5 {[%emt 0:00:01]} Bxf5 {[%emt 0:00:05]} 68. Kxa4 {[%emt 0:00:01]} Bg6 {[%emt 0:00:17]} 69. Kb4 {[%emt 0:00:01]} 1-0

[Event "FIDE Open World Rapid 2024"]
[Site "New York"]
[Date "2024.12.28"]
[Round "9.9"]
[White "Batsuren, Dambasuren"]
[Black "Bok, Benjamin"]
[Result "0-1"]
[ECO "E48"]
[WhiteElo "2531"]
[BlackElo "2593"]
[Annotator "ChessBase"]
[PlyCount "140"]
[EventDate "2024.12.14"]
[EventType "swiss"]
[EventCountry "USA"]
[SourceTitle "playchess.com"]
[Source "ChessBase"]
[SourceQuality "1"]
[TimeControl "900+10"]

1. d4 {[%emt 0:00:02]} Nf6 {[%emt 0:00:01]} 2. c4 {[%emt 0:00:02]} e6 {[%emt 0:00:02]} 3. Nc3 {[%emt 0:00:08]} Bb4 {[%emt 0:00:02]} 4. e3 {[%emt 0:00:02]} O-O {[%emt 0:00:03]} 5. Bd3 {[%emt 0:00:04]} d5 {[%emt 0:00:06]} 6. cxd5 {[%emt 0:00:13]} exd5 {[%emt 0:00:03]} 7. a3 {[%emt 0:00:01]} Bd6 {[%emt 0:00:11]} 8. Qc2 {[%emt 0:00:02]} c6 {[%emt 0:01:09]} 9. Nge2 {[%emt 0:00:02]} Re8 {[%emt 0:00:41]} 10. Bd2 {[%emt 0:00:08]} b6 {[%emt 0:00:22]} 11. f3 {[%emt 0:00:21]} c5 {[%emt 0:00:10]} 12. g4 {[%emt 0:00:06]} c4 {[%emt 0:00:32]} 13. Bf5 {[%emt 0:00:03]} Bxf5 {[%emt 0:00:21]} 14. Qxf5 {[%emt 0:00:02]} g6 {[%emt 0:00:05]} 15. Qg5 {[%emt 0:00:07]} Nc6 {[%emt 0:00:55]} 16. Qh4 {[%emt 0:00:55]} Be7 {[%emt 0:00:31]} 17. Qf2 {[%emt 0:00:48]} b5 {[%emt 0:00:23]} 18. O-O {[%emt 0:02:03]} b4 {[%emt 0:00:11]} 19. axb4 {[%emt 0:01:20]} Nxb4 {[%emt 0:00:02]} 20. e4 {[%emt 0:00:33]} Nd3 {[%emt 0:01:09]} 21. Qg2 {[%emt 0:00:23]} dxe4 {[%emt 0:02:44]} 22. fxe4 {[%emt 0:00:08]} Rb8 {[%emt 0:00:50]} 23. e5 {[%emt 0:07:20]} Rxb2 {[%emt 0:01:05]} 24. exf6 {[%emt 0:00:13]} Bxf6 {[%emt 0:00:22]} 25. Qf3 {[%emt 0:00:38]} Bxd4+ {[%emt 0:01:35]} 26. Nxd4 {[%emt 0:02:10]} Qxd4+ {[%emt 0:00:02]} 27. Be3 {[%emt 0:00:03]} Qxe3+ {[%emt 0:01:00]} 28. Qxe3 {[%emt 0:00:01]} Rxe3 {[%emt 0:00:02]} 29. Nd1 {[%emt 0:00:13]} Re7 {[%emt 0:01:49]} 30. Nxb2 {[%emt 0:00:02]} Nxb2 {[%emt 0:00:02]} 31. Rfc1 {[%emt 0:00:42]} Rc7 {[%emt 0:01:20]} 32. Ra3 {[%emt 0:00:25]} Kg7 {[%emt 0:01:36]} 33. Rca1 {[%emt 0:01:05]} Nd3 {[%emt 0:01:02]} 34. Rxa7 {[%emt 0:00:05]} Rc8 {[%emt 0:00:08]} 35. Rf1 {[%emt 0:00:15]} Ne5 {[%emt 0:00:12]} 36. Kf2 {[%emt 0:00:12]} Nxg4+ {[%emt 0:00:09]} 37. Ke2 {[%emt 0:00:08]} Nh6 {[%emt 0:00:08]} 38. Kd2 {[%emt 0:00:05]} Nf5 {[%emt 0:00:07]} 39. Kc3 {[%emt 0:00:03]} Re8 {[%emt 0:00:15]} 40. Rf2 {[%emt 0:00:09]} Nd6 {[%emt 0:00:07]} 41. Kb4 {[%emt 0:00:09]} Rb8+ {[%emt 0:00:06]} 42. Ka4 {[%emt 0:00:05]} c3 {[%emt 0:00:12]} 43. Rc7 {[%emt 0:00:23]} Rb2 {[%emt 0:00:04]} 44. Rf3 {[%emt 0:00:15]} Rxh2 {[%emt 0:00:10]} 45. Rcxc3 {[%emt 0:00:15]} Rh4+ {[%emt 0:00:10]} 46. Ka5 {[%emt 0:00:08]} h5 {[%emt 0:00:14]} 47. Kb6 {[%emt 0:00:10]} Nf5 {[%emt 0:00:13]} 48. Kc5 {[%emt 0:00:12]} Re4 {[%emt 0:00:04]} 49. Kd5 {[%emt 0:00:08]} Re7 {[%emt 0:00:03]} 50. Ra3 {[%emt 0:00:10]} h4 {[%emt 0:00:11]} 51. Ra4 {[%emt 0:00:04]} Kh6 {[%emt 0:00:08]} 52. Raf4 {[%emt 0:00:18]} Kg5 {[%emt 0:00:07]} 53. Ra4 {[%emt 0:00:09]} f6 {[%emt 0:00:27]} 54. Rf2 {[%emt 0:00:11]} Re5+ {[%emt 0:00:07]} 55. Kc6 {[%emt 0:00:01]} Ne3 {[%emt 0:00:14]} 56. Kd6 {[%emt 0:00:13]} Nf5+ {[%emt 0:00:11]} 57. Kc6 {[%emt 0:00:01]} Ng3 {[%emt 0:00:11]} 58. Rff4 {[%emt 0:00:09]} Nf5 {[%emt 0:00:13]} 59. Rf2 {[%emt 0:00:26]} Re3 {[%emt 0:00:06]} 60. Kd5 {[%emt 0:00:08]} h3 {[%emt 0:00:05]} 61. Ra8 {[%emt 0:00:12]} Kg4 {[%emt 0:00:11]} 62. Rf8 {[%emt 0:00:10]} Kg3 {[%emt 0:00:09]} 63. Rf1 {[%emt 0:00:08]} Kg2 {[%emt 0:00:16]} 64. Ra1 {[%emt 0:00:03]} Re5+ {[%emt 0:00:11]} 65. Kc6 {[%emt 0:00:15]} Nd4+ {[%emt 0:00:09]} 66. Kd6 {[%emt 0:00:10]} Rf5 {[%emt 0:00:09]} 67. Ra2+ {[%emt 0:00:07]} Kg3 {[%emt 0:00:04]} 68. Rh8 {[%emt 0:00:14]} g5 {[%emt 0:00:07]} 69. Rh5 {[%emt 0:00:13]} g4 {[%emt 0:00:13]} 70. Ra3+ {[%emt 0:00:09]} Kf4 {[%emt 0:00:13]} 0-1

[Event "FIDE Open World Rapid 2024"]
[Site "New York"]
[Date "2024.12.27"]
[Round "9.10"]
[White "Sadhwani, Raunak"]
[Black "Yu, Yangyi"]
[Result "1/2-1/2"]
[ECO "C42"]
[WhiteElo "2673"]
[BlackElo "2724"]
[Annotator "TA"]
[PlyCount "24"]
[EventDate "2024.12.14"]
[EventType "swiss"]
[EventCountry "USA"]
[SourceTitle "playchess.com"]
[Source "ChessBase"]
[SourceQuality "1"]
[TimeControl "900+10"]

{[%evp 16,24,36,48,40,39,41,32,31,28,34]} 1. e4 {[%emt 0:00:01]} e5 {[%emt 0:00:01]} 2. Nf3 {[%emt 0:00:02]} Nf6 {[%emt 0:00:03][%cal Bg8f6,Bf6e4,Be4d2][%mdl 32]} 3. Nxe5 {[%emt 0:00:02]} d6 {[%emt 0:00:01]} 4. Nf3 {[%emt 0:00:02]} Nxe4 {[%emt 0:00:02]} 5. d4 {[%emt 0:00:01]} d5 {[%emt 0:00:01]} 6. Bd3 {[%emt 0:00:02]} Nc6 {[%emt 0:00:50]} 7. O-O {[%emt 0:00:03]} Be7 {[%emt 0:00:02]} 8. Re1 {[%emt 0:00:19]} Bf5 {[%emt 0:00:14]} 9. Nbd2 {[%emt 0:00:02]} Nxd2 {[%emt 0:00:22]} 10. Qxd2 {[%emt 0:00:02]} Bg6 {[%emt 0:00:09]} 11. c3 {[%emt 0:00:34]} O-O {[%emt 0:00:03]} 12. Bxg6 {[%emt 0:00:15]} hxg6 {[%emt 0:00:03] Black got outplayed after the opening.   Weighted Error Value: White=0.03 (flawless) /Black=0.01 (flawless) .  OK:         	White=1     	Black=1} 1/2-1/2